bitfinex-derivatives/quotes_ETHF0:USTF0_20260204
["timestamp","ask_amount","ask_price","bid_price","bid_amount"]
[1770233274102,7.28850625,2137.9,2136.7,0.23447]
[1770233274601,7.28850625,2137.9,2136.9,0.23445]
[1770233275503,7.28850625,2137.9,2137.2,0.23441]
[1770233275703,7.28850625,2137.9,2137.2,14.13941]
[1770233276605,7.28850625,2137.9,2137.3,0.2344]
[1770233278405,7.63710519,2138.4,2137.4,0.23439]
[1770233278605,7.63710519,2138.4,2137.6,0.23437]
[1770233279107,7.63710519,2138.4,2137.7,0.23436]
[1770233280406,7.63710519,2138.4,2137.2,14.373]
[1770233280706,8.10510519,2138.4,2136.5,0.23449]
[1770233280908,8.10510519,2138.4,2136.7,0.23447]
[1770233281408,8.10510519,2138.4,2137.0,7.05046976]
[1770233281409,7.63710519,2138.4,2137.0,7.05046976]
[1770233281706,7.63710519,2138.4,2137.4,0.23439]
[1770233282206,7.63710519,2138.4,2137.1,0.23443]
[1770233282406,7.63710519,2138.4,2137.2,0.23442]
[1770233283106,7.63710519,2138.4,2137.0,0.468]
[1770233283308,7.63710519,2138.4,2137.3,0.2344]
[1770233283502,7.63710519,2138.4,2137.0,0.468]
[1770233284399,7.38209759,2138.3,2137.0,0.468]
[1770233284601,47.89238609,2138.2,2136.4,0.00378373]
[1770233284799,7.38209759,2137.7,2136.3,0.468]
[1770233285003,7.38209759,2137.6,2136.3,0.468]
[1770233285402,7.38209759,2137.6,2135.9,0.23455]
[1770233285808,7.38734431,2137.6,2136.0,0.23455]
[1770233286005,47.89763281,2137.6,2136.0,0.23455]
[1770233286207,7.38209759,2137.5,2135.7,0.468]
[1770233286408,7.38209759,2137.4,2135.7,0.70258]
[1770233286709,7.38209759,2137.3,2135.8,0.23457]
[1770233286910,7.38209759,2137.2,2135.8,0.23457]
[1770233288304,7.38209759,2137.2,2135.7,0.468]
[1770233288510,7.38209759,2137.1,2135.7,0.468]
[1770233288711,7.38209759,2137.0,2135.7,0.468]
[1770233288907,7.38209759,2136.9,2135.7,0.468]
[1770233289705,7.38209759,2136.9,2135.7,0.70258]
[1770233291912,7.38209759,2136.9,2135.7,0.468]
[1770233293009,7.38209759,2136.9,2135.4,7.28507976]
[1770233293313,7.38209759,2136.9,2135.5,7.28506976]
[1770233295913,7.38209759,2136.9,2135.5,0.2346]
[1770233296114,7.38209759,2136.9,2135.2,0.54947412]
[1770233296414,7.38209759,2136.7,2135.2,0.468]
[1770233297012,7.38209759,2136.4,2135.2,0.468]
[1770233298814,7.38209759,2136.4,2135.2,7.51846976]
[1770233299216,7.38209759,2137.1,2135.2,0.468]
[1770233299714,7.38209759,2137.0,2135.2,0.468]
[1770233300514,7.38209759,2137.0,2135.4,0.23461]
[1770233300915,47.89238609,2137.0,2135.4,0.23461]
[1770233301116,7.38209759,2136.9,2135.4,0.23461]
[1770233302413,9.66900611,2136.9,2135.4,0.23461]
[1770233302613,7.38209759,2136.8,2135.4,0.23461]
[1770233303422,7.38209759,2136.8,2135.5,0.2346]
[1770233304022,7.38209759,2136.8,2135.6,0.23459]
[1770233304228,7.38209759,2136.8,2135.4,7.05160972]
[1770233304524,7.38209759,2136.8,2135.2,0.468]
[1770233304727,7.38209759,2136.8,2135.2,7.51960972]
[1770233305626,7.38209759,2136.8,2135.3,0.23462]
[1770233305926,7.38209759,2136.8,2135.2,0.468]
[1770233307726,7.70429443,2136.7,2135.2,0.468]
[1770233308325,7.70429443,2136.7,2135.2,7.51960972]
[1770233308526,7.70429443,2136.7,2135.5,7.05160972]
[1770233308720,7.70429443,2137.0,2136.0,7.28614972]
[1770233309022,7.70429443,2137.0,2136.1,7.28614972]
[1770233309228,7.70429443,2137.0,2135.7,7.28618972]
[1770233311325,7.70429443,2137.0,2135.4,9.83239691]
[1770233311631,7.70429443,2136.8,2135.2,0.468]
[1770233312332,7.70429443,2136.7,2135.2,0.468]
[1770233313033,7.70429443,2136.6,2135.2,0.468]
[1770233313240,7.70429443,2136.6,2135.5,0.2346]
[1770233313427,7.70429443,2136.6,2135.7,7.28618972]
[1770233314232,7.70429443,2136.6,2135.8,10.06696691]
[1770233315129,7.70429443,2136.6,2135.6,6.98088842]
[1770233315330,7.70429443,2136.6,2135.6,9.83239691]
[1770233316134,7.70429443,2136.6,2135.7,2.78078719]
[1770233316433,7.70429443,2136.6,2135.7,7.05160972]
[1770233316734,8.17229443,2136.9,2135.8,7.05160972]
[1770233316929,8.17229443,2136.9,2135.8,7.28617972]
[1770233317234,7.70429443,2136.9,2135.9,7.28616972]
[1770233317534,7.70429443,2136.9,2136.0,7.05160972]
[1770233317935,7.70429443,2136.9,2136.1,7.05160972]
[1770233318132,7.70429443,2136.9,2135.9,0.23456]
[1770233319137,7.70429443,2136.9,2135.9,7.28616972]
[1770233319336,7.70429443,2136.9,2135.9,10.06695691]
[1770233319537,7.70429443,2136.9,2135.9,7.28616972]
[1770233319836,7.70429443,2136.9,2135.9,10.06695691]
[1770233320036,7.70429443,2136.9,2135.9,7.28616972]
[1770233320430,7.70429443,2136.9,2135.9,10.06695691]
[1770233321536,7.70429443,2136.9,2135.9,7.28616972]
[1770233322136,7.70429443,2136.9,2135.9,10.06695691]
[1770233322438,7.70429443,2137.2,2136.2,7.28612972]
[1770233322734,7.70429443,2137.2,2136.3,7.05160972]
[1770233323135,7.70429443,2137.5,2136.4,7.28610972]
[1770233323338,7.70429443,2137.5,2136.5,7.28609972]
[1770233324842,7.70429443,2137.5,2136.2,0.23452]
[1770233325541,7.70429443,2137.5,2136.3,0.23451]
[1770233325941,7.70429443,2137.5,2136.4,0.2345]
[1770233328741,7.70429443,2137.5,2136.0,7.28614972]
[1770233328944,7.70429443,2137.5,2136.1,0.23454]
[1770233329443,48.21458293,2137.5,2136.1,0.23454]
[1770233329643,7.70429443,2137.3,2136.1,0.23454]
[1770233330440,7.70429443,2137.3,2136.2,7.05160972]
[1770233330641,7.70429443,2137.3,2136.5,0.23449]
[1770233330845,7.70429443,2137.3,2136.5,7.28609972]
[1770233332744,7.70429443,2137.3,2136.5,0.23449]
[1770233332946,7.70429443,2137.3,2136.5,7.28609972]
[1770233334446,7.70429443,2137.3,2136.5,0.23449]
[1770233334939,7.70429443,2137.3,2136.6,0.23448]
[1770233335246,7.1668059,2138.1,2137.1,7.32012638]
[1770233335445,7.1668059,2138.1,2137.4,0.23439]
[1770233336342,7.17045953,2138.1,2137.4,0.23951907]
[1770233336945,0.00365363,2138.1,2137.4,0.23951907]
[1770233337752,7.1668059,2137.7,2137.4,0.00512907]
[1770233337950,7.1668059,2137.6,2136.8,7.08570638]
[1770233338350,7.1668059,2137.6,2136.8,7.32016638]
[1770233338550,7.1668059,2138.0,2136.9,7.08570638]
[1770233338750,7.1668059,2138.0,2137.2,7.92223988]
[1770233338951,0.00365363,2138.1,2137.4,0.23439]
[1770233340558,7.18972998,2138.1,2137.4,0.23439]
[1770233340747,7.18972998,2138.1,2136.8,2.78078719]
[1770233340947,7.18607635,2137.4,2136.1,3.01531719]
[1770233341147,7.18607635,2137.0,2136.1,0.23453]
[1770233341551,7.18607635,2136.7,2136.1,0.23453]
[1770233341752,7.18607635,2137.4,2136.1,0.23453]
[1770233341952,7.19132307,2137.4,2136.1,0.23453]
[1770233342255,7.18607635,2136.9,2136.1,0.23453]
[1770233342751,7.18607635,2136.7,2136.1,0.23453]
[1770233343256,0.00524672,2136.6,2135.9,0.468]
[1770233343456,7.18607635,2136.5,2135.9,0.468]
[1770233344256,0.00418561,2136.6,2135.9,8.39037988]
[1770233344457,7.18607635,2137.9,2136.4,0.2345]
[1770233344654,7.19132307,2137.9,2136.6,0.23448]
[1770233345053,0.468,2138.0,2136.6,0.23448]
[1770233345054,7.18607635,2137.7,2136.6,0.23448]
[1770233345357,7.18607635,2137.5,2136.6,7.92230988]
[1770233345558,0.0057197,2137.5,2136.8,0.23445]
[1770233345952,7.19179605,2137.5,2136.8,0.23445]
[1770233346356,7.18607635,2136.9,2136.1,2.78078719]
[1770233346858,7.18607635,2136.9,2136.0,7.92236988]
[1770233347560,7.18607635,2136.9,2136.0,0.23454]
[1770233347760,7.18607635,2136.9,2136.0,0.235682]
[1770233348261,7.18607635,2137.2,2136.1,7.92236988]
[1770233348661,7.19132307,2137.2,2136.1,7.92236988]
[1770233349063,7.18607635,2137.0,2136.1,7.92236988]
[1770233349558,7.18607635,2137.0,2136.1,10.46861707]
[1770233349865,0.0057197,2137.5,2136.8,0.23446]
[1770233350260,0.00524672,2137.4,2136.8,0.23446]
[1770233351064,0.0057197,2137.5,2136.9,0.23444]
[1770233351462,0.0057197,2137.5,2136.6,7.92230988]
[1770233351763,7.18607635,2137.4,2136.6,0.23448]
[1770233351960,0.0057197,2137.5,2136.7,0.23447]
[1770233352165,0.0057197,2137.5,2136.7,7.92229988]
[1770233352660,7.19179605,2137.5,2136.2,4.20010123]
[1770233352965,7.19179605,2137.5,2136.1,7.68782988]
[1770233353266,7.19179605,2137.5,2136.2,0.23452]
[1770233353566,7.19179605,2137.5,2136.3,0.23451]
[1770233353765,7.19179605,2137.5,2136.5,0.23449]
[1770233354067,7.19179605,2137.5,2136.0,7.92351188]
[1770233354763,7.19179605,2137.5,2136.4,0.2345]
[1770233355068,7.19179605,2137.5,2136.6,0.23448]
[1770233355362,7.19179605,2137.5,2136.9,0.23444]
[1770233355563,7.18607635,2137.8,2137.0,0.23443]
[1770233356268,7.18607635,2137.8,2136.2,11.88793111]
[1770233356566,7.18968436,2137.8,2136.3,0.23451]
[1770233356868,7.18607635,2137.6,2136.3,0.23451]
[1770233357061,47.80160935,2137.6,2136.0,0.001142]
[1770233357268,7.18607635,2137.5,2136.0,0.235682]
[1770233357863,7.18607635,2137.5,2136.1,0.23453]
[1770233358065,7.18607635,2137.5,2136.2,10.46861707]
[1770233358262,7.18607635,2137.5,2136.4,0.2345]
[1770233358667,7.18607635,2137.5,2136.4,3.01528719]
[1770233359166,7.18607635,2137.5,2136.6,3.01525719]
[1770233359372,7.18607635,2137.5,2136.7,2.78078719]
[1770233360271,7.18607635,2137.5,2136.6,0.23447]
[1770233360970,7.18607635,2137.5,2136.2,0.23452]
[1770233362567,7.18607635,2137.5,2136.3,0.23451]
[1770233362871,7.18607635,2137.5,2136.3,3.01529719]
[1770233363065,7.18607635,2137.5,2136.4,7.68782988]
[1770233363265,7.18607635,2137.5,2136.6,2.78078719]
[1770233363673,7.18607635,2137.5,2136.5,0.23449]
[1770233363973,7.18607635,2137.5,2136.8,0.23446]
[1770233364171,7.18607635,2137.5,2136.9,0.23445]
[1770233364673,7.18607635,2137.5,2137.1,2.78078719]
[1770233364872,7.36105743,2137.7,2137.1,2.78078719]
[1770233365174,7.36105743,2137.7,2136.9,0.23445]
[1770233365371,0.00360801,2137.8,2137.3,7.7594879]
[1770233365569,7.36105743,2138.4,2137.5,0.23438]
[1770233366072,7.36105743,2138.4,2137.6,2.78078719]
[1770233366273,7.36105743,2138.4,2137.5,3.01516719]
[1770233366474,7.36105743,2138.4,2137.6,2.78078719]
[1770233366672,7.36492142,2138.4,2137.7,2.78078719]
[1770233366868,7.36492142,2138.4,2137.8,2.78078719]
[1770233367266,7.36492142,2138.4,2137.9,2.78078719]
[1770233367474,7.36492142,2138.4,2137.8,2.78078719]
[1770233367873,7.36492142,2138.4,2137.9,2.78078719]
[1770233368569,7.36105743,2138.7,2138.2,2.78078719]
[1770233368774,7.36105743,2138.7,2138.1,0.23431]
[1770233368974,7.36105743,2138.7,2138.3,0.4349]
[1770233369374,7.36105743,2138.7,2138.3,3.21568719]
[1770233369571,7.36577222,2138.7,2138.4,2.78078719]
[1770233369770,6.35825245,2138.7,2138.3,3.21568719]
[1770233369973,6.35825245,2138.7,2137.7,0.23436]
[1770233370173,6.35825245,2138.7,2137.7,3.01514719]
[1770233370478,6.35825245,2138.7,2137.8,2.78078719]
[1770233370681,6.36325695,2138.7,2137.8,2.78078719]
[1770233370877,6.36325695,2138.7,2138.1,2.78078719]
[1770233371083,0.0050045,2138.7,2138.0,3.01511719]
[1770233371376,0.0050045,2138.7,2138.2,2.78078719]
[1770233371572,0.468,2139.3,2138.3,3.01507719]
[1770233371774,7.36105743,2139.2,2138.3,0.23429]
[1770233372376,7.36105743,2139.2,2138.3,3.01507719]
[1770233372570,7.36105743,2139.2,2138.5,2.78078719]
[1770233372774,7.36650381,2139.2,2138.5,2.78078719]
[1770233372978,7.36650381,2139.2,2138.3,0.23429]
[1770233374080,7.36650381,2139.2,2138.4,0.23428]
[1770233374274,0.00544638,2139.2,2138.7,2.78078719]
[1770233374578,0.00544638,2139.2,2138.9,2.78078719]
[1770233374777,7.36105743,2139.5,2138.9,2.78078719]
[1770233375277,7.36105743,2139.5,2139.0,2.78078719]
[1770233375477,7.36105743,2139.5,2138.9,2.78078719]
[1770233375670,7.36688855,2139.5,2138.9,2.78078719]
[1770233375871,7.36688855,2139.5,2138.8,0.23424]
[1770233376076,7.36688855,2139.5,2138.4,0.23428]
[1770233376679,7.36688855,2139.5,2138.1,0.468]
[1770233376880,7.36105743,2139.4,2138.1,0.468]
[1770233377174,7.82905743,2139.4,2137.9,0.4996]
[1770233377475,7.36105743,2139.0,2137.9,0.4996]
[1770233378171,7.36105743,2138.6,2137.3,0.468]
[1770233378775,7.36105743,2138.6,2137.5,0.23438]
[1770233379279,7.36105743,2138.6,2137.5,3.02093155]
[1770233379777,7.36105743,2138.6,2137.6,2.78078719]
[1770233380677,7.36105743,2138.6,2137.5,0.24014436]
[1770233380876,7.36105743,2138.6,2137.7,2.78078719]
[1770233381180,7.36105743,2138.6,2137.7,7.7594479]
[1770233381376,7.36105743,2138.6,2138.1,2.78078719]
[1770233381572,7.36105743,2139.3,2138.1,2.78078719]
[1770233381776,7.36105743,2139.3,2138.2,2.78078719]
[1770233381981,7.36105743,2139.3,2138.1,7.5250879]
[1770233382281,7.36105743,2139.3,2138.2,2.78078719]
[1770233382480,7.36105743,2139.3,2138.3,2.78078719]
[1770233383080,7.36105743,2139.3,2137.6,0.23437]
[1770233383480,7.36105743,2139.0,2137.6,0.23437]
[1770233383782,7.36105743,2139.0,2137.5,0.00576436]
[1770233384077,2.28916083,2138.7,2137.5,0.00576436]
[1770233384275,2.28916083,2138.7,2137.1,0.23442]
[1770233384276,7.36105743,2138.6,2137.1,0.23442]
[1770233384488,7.36105743,2138.6,2136.5,0.70249]
[1770233384489,7.36105743,2138.1,2136.5,0.70249]
[1770233384678,7.36105743,2138.0,2136.5,0.70249]
[1770233385375,7.36105743,2137.8,2136.5,0.47320029]
[1770233386384,7.36105743,2137.8,2136.1,0.23453]
[1770233386582,7.36105743,2137.8,2136.2,2.78078719]
[1770233387182,7.36105743,2137.8,2136.2,2.78450648]
[1770233387985,7.36105743,2137.4,2136.2,0.00371929]
[1770233388179,7.82905743,2137.4,2136.2,0.00371929]
[1770233390283,7.82905743,2137.4,2135.7,0.468]
[1770233391280,7.36105743,2137.0,2135.7,0.0052808]
[1770233391787,7.36105743,2137.0,2135.8,0.23457]
[1770233391981,7.36105743,2137.0,2136.3,2.78078719]
[1770233392180,7.36105743,2137.0,2136.1,0.23453]
[1770233392181,7.36105743,2137.0,2136.4,2.78078719]
[1770233392381,7.36105743,2137.0,2136.6,2.78078719]
[1770233392781,7.36105743,2137.0,2136.7,1.70678719]
[1770233392980,0.00333131,2138.0,2136.9,1.70678719]
[1770233393176,0.00333131,2138.0,2136.5,7.5250879]
[1770233393383,0.00333131,2138.0,2136.7,1.70678719]
[1770233393583,2.29249214,2138.0,2136.0,7.9930879]
[1770233393786,2.29249214,2138.0,2136.1,7.5250879]
[1770233394087,2.52682214,2138.0,2136.1,7.5250879]
[1770233394485,2.28916083,2137.6,2136.0,0.70255]
[1770233395087,7.62078874,2137.5,2136.0,0.468]
[1770233395286,7.62078874,2137.3,2135.8,7.56425183]
[1770233395487,7.62078874,2137.3,2135.9,1.70678719]
[1770233395687,7.62078874,2137.3,2136.0,1.70678719]
[1770233396284,7.62078874,2137.3,2135.5,7.79885183]
[1770233397484,7.62078874,2137.3,2135.7,1.71206799]
[1770233397885,2.28916083,2137.2,2135.7,1.71206799]
[1770233398089,7.62078874,2137.1,2135.7,0.0052808]
[1770233398491,7.62078874,2137.1,2135.7,1.71206799]
[1770233399580,7.62078874,2137.1,2135.9,1.70678719]
[1770233399785,7.62078874,2137.1,2136.1,1.70678719]
[1770233400180,7.62078874,2137.1,2136.3,1.70678719]
[1770233400386,7.65374354,2136.3,2135.1,7.52422497]
[1770233400982,0.23448,2136.6,2134.3,1.0798]
[1770233400983,7.65374354,2137.1,2135.7,7.28958497]
[1770233401189,7.65374354,2137.1,2136.0,7.28958497]
[1770233401491,7.65765904,2137.1,2136.2,7.28958497]
[1770233401886,8.12174354,2137.6,2136.4,7.28958497]
[1770233402087,8.12174354,2137.6,2136.1,7.28958497]
[1770233402287,7.65374354,2137.5,2136.1,7.28958497]
[1770233402684,7.65374354,2137.1,2136.0,0.00375179]
[1770233402886,7.65374354,2137.1,2134.9,1.07947]
[1770233402887,7.88823354,2136.5,2134.9,7.28958497]
[1770233403090,7.65374354,2136.3,2134.6,7.75758497]
[1770233403289,7.65374354,2136.3,2134.8,7.52426497]
[1770233403698,7.65374354,2136.3,2135.0,7.28958497]
[1770233403894,7.65796253,2136.3,2135.0,7.29323749]
[1770233404593,7.65374354,2136.9,2135.8,7.28958497]
[1770233404789,7.65374354,2137.3,2136.0,7.52412497]
[1770233405097,7.65374354,2137.1,2135.1,7.28958497]
[1770233405296,7.65374354,2137.1,2135.6,7.28958497]
[1770233405490,7.65374354,2137.1,2135.8,7.28958497]
[1770233405696,7.65881804,2137.1,2135.8,7.52414497]
[1770233406190,48.26927654,2138.2,2136.5,1.07869]
[1770233406396,7.65374354,2138.9,2137.0,7.28958497]
[1770233406595,7.65374354,2138.9,2136.8,1.07852]
[1770233406596,2.28916083,2138.6,2137.2,7.28958497]
[1770233406796,2.28916083,2138.6,2136.6,0.70248]
[1770233406797,7.65374354,2138.5,2136.9,7.28958497]
[1770233407193,7.65909718,2138.5,2136.9,8.36805497]
[1770233407389,7.65374354,2139.8,2138.3,7.28958497]
[1770233407594,7.65374354,2139.8,2138.0,7.75758497]
[1770233407795,7.65374354,2139.6,2138.4,0.9351]
[1770233408191,7.65374354,2139.2,2137.7,7.28958497]
[1770233408498,7.65374354,2139.0,2137.8,7.28958497]
[1770233408699,0.468,2139.1,2137.8,7.28958497]
[1770233408996,8.12174354,2139.1,2137.8,7.28958497]
[1770233409796,8.12174354,2139.1,2137.1,0.468]
[1770233409999,7.65374354,2138.8,2136.9,7.28958497]
[1770233410698,7.65374354,2138.8,2137.3,7.28958497]
[1770233410897,7.65374354,2138.8,2137.5,7.28958497]
[1770233412499,0.00567919,2139.2,2138.0,7.28958497]
[1770233412691,0.00567919,2139.2,2138.0,7.52391497]
[1770233412891,8.12174354,2139.9,2138.2,7.52388497]
[1770233413304,0.468,2139.9,2138.6,7.28958497]
[1770233413504,8.12174354,2139.9,2138.6,7.28958497]
[1770233413697,8.12174354,2139.9,2138.2,7.28958497]
[1770233413897,8.12778158,2139.9,2138.2,7.28958497]
[1770233414297,7.65374354,2139.8,2138.2,7.28958497]
[1770233414497,7.73512468,2139.8,2138.2,7.28958497]
[1770233414999,7.65374354,2139.8,2138.2,7.28958497]
[1770233416402,7.65374354,2139.8,2138.4,0.23428]
[1770233416602,7.65374354,2139.8,2138.4,7.52386497]
[1770233416802,7.65374354,2139.8,2138.4,7.28958497]
[1770233416996,7.65374354,2139.8,2138.1,7.75758497]
[1770233417894,7.96925763,2139.8,2138.0,0.23433]
[1770233418093,7.88794354,2139.3,2137.5,7.28958497]
[1770233418498,7.65374354,2139.3,2137.7,7.28958497]
[1770233418897,7.65374354,2138.9,2137.3,0.00433469]
[1770233419095,7.65374354,2138.7,2137.3,0.00433469]
[1770233419905,7.65374354,2138.7,2137.3,7.29391966]
[1770233420105,0.468,2138.8,2137.8,7.28958497]
[1770233420605,8.12174354,2138.8,2137.8,7.28958497]
[1770233421204,0.468,2138.8,2137.8,7.28958497]
[1770233421403,8.12174354,2138.8,2137.8,7.28958497]
[1770233421705,8.12174354,2138.8,2137.5,7.28958497]
[1770233422104,8.35598354,2138.8,2137.5,7.28958497]
[1770233422500,8.35598354,2138.8,2137.3,0.00433469]
[1770233422701,7.65374354,2138.1,2137.3,0.00433469]
[1770233423005,7.65374354,2138.1,2136.5,0.468]
[1770233423006,7.65374354,2137.6,2136.5,7.28958497]
[1770233423299,7.88813354,2137.5,2136.2,7.28958497]
[1770233423900,0.468,2137.8,2136.2,7.29359911]
[1770233423901,6.96860413,2137.3,2136.2,7.29359911]
[1770233424299,6.96860413,2137.0,2135.5,7.25717996]
[1770233424599,6.96860413,2136.6,2135.5,7.25717996]
[1770233424806,0.23449,2136.6,2134.9,7.49184996]
[1770233425005,7.43660413,2136.9,2135.1,7.25717996]
[1770233425205,7.67105413,2136.9,2135.1,7.25717996]
[1770233425404,7.6759182,2136.9,2135.1,7.26319528]
[1770233425805,0.70731407,2136.9,2135.3,7.25717996]
[1770233426802,7.6759182,2136.9,2135.3,7.25717996]
[1770233427002,0.00486407,2136.9,2135.5,8.33635996]
[1770233427198,6.96860413,2137.9,2136.0,7.49172996]
[1770233427403,0.70233,2138.0,2136.2,7.25717996]
[1770233427711,7.67093413,2138.0,2136.2,7.25717996]
[1770233428006,6.96860413,2137.7,2136.2,7.25717996]
[1770233428309,6.97245857,2137.7,2136.2,7.25717996]
[1770233428508,0.23438,2137.6,2136.2,7.25717996]
[1770233428905,0.00385444,2137.7,2136.2,7.25717996]
[1770233429203,0.00385444,2137.7,2135.9,0.468]
[1770233429204,0.00385444,2137.7,2136.4,7.25717996]
[1770233430206,6.97245857,2137.7,2136.4,7.25717996]
[1770233430809,6.96860413,2137.5,2136.1,7.25717996]
[1770233431010,6.96860413,2137.2,2136.1,7.25717996]
[1770233431309,6.96860413,2137.0,2135.3,7.25717996]
[1770233431510,0.468,2137.1,2135.3,7.25717996]
[1770233431711,7.43660413,2137.1,2135.6,7.25717996]
[1770233433614,6.96860413,2136.7,2135.1,0.00601532]
[1770233433909,6.96860413,2136.6,2135.1,7.26319528]
[1770233434113,6.96860413,2137.1,2135.8,7.25717996]
[1770233434508,6.96860413,2137.1,2135.5,7.25717996]
[1770233435606,7.20303413,2137.1,2135.5,7.25717996]
[1770233436011,6.96860413,2136.9,2135.5,7.25717996]
[1770233436710,6.96860413,2136.9,2135.3,0.23462]
[1770233436914,6.96860413,2136.9,2135.3,7.49179996]
[1770233438008,6.96860413,2136.9,2135.5,7.25717996]
[1770233439211,6.96860413,2136.9,2135.5,7.49177996]
[1770233439909,6.96860413,2136.9,2135.5,7.25717996]
[1770233440417,6.96860413,2136.9,2135.2,7.25717996]
[1770233440618,6.96860413,2136.6,2135.2,7.25717996]
[1770233440810,6.96860413,2136.4,2135.2,7.25717996]
[1770233442013,7.20311413,2136.4,2135.2,7.25717996]
[1770233442413,6.96860413,2136.2,2135.2,7.25717996]
[1770233442619,6.97388873,2136.2,2135.2,7.25717996]
[1770233443120,8.04754413,2136.0,2134.5,7.25717996]
[1770233443325,7.20315413,2136.0,2134.5,7.25717996]
[1770233443721,6.96860413,2136.0,2134.5,7.25717996]
[1770233444123,6.96860413,2136.0,2134.5,7.26204898]
[1770233444322,7.20317413,2135.8,2134.5,7.26204898]
[1770233445027,6.96860413,2136.1,2134.5,7.26204898]
[1770233445225,0.0052846,2136.2,2134.7,7.25717996]
[1770233445426,6.96860413,2136.1,2134.5,7.26204898]
[1770233446325,7.20314413,2136.1,2134.5,7.26204898]
[1770233446526,6.96860413,2135.5,2134.5,0.00486902]
[1770233446726,0.468,2135.4,2134.5,7.26204898]
[1770233449023,7.67122413,2135.4,2134.5,0.00486902]
[1770233449230,6.96860413,2135.2,2134.5,0.00486902]
[1770233449424,7.20324413,2135.2,2134.2,7.25717996]
[1770233449824,6.96860413,2135.2,2134.2,7.25717996]
[1770233450027,0.468,2135.4,2134.2,7.25717996]
[1770233450522,0.468,2135.4,2134.2,7.26239957]
[1770233450726,7.43660413,2135.4,2134.2,7.26239957]
[1770233451423,0.468,2135.4,2134.2,7.26239957]
[1770233451629,7.43660413,2135.4,2134.2,7.26239957]
[1770233452025,0.468,2135.4,2134.2,7.26239957]
[1770233452228,0.468,2135.4,2134.2,7.49713957]
[1770233452832,7.43660413,2135.4,2134.2,7.26239957]
[1770233453028,6.96860413,2134.7,2133.5,7.25717996]
[1770233454035,6.97331353,2134.7,2133.5,7.25828516]
[1770233454437,0.0047094,2134.7,2133.5,7.25828516]
[1770233454832,0.0047094,2134.7,2133.5,7.49310516]
[1770233455837,0.0047094,2134.7,2133.5,7.25828516]
[1770233456636,0.0047094,2134.7,2133.5,7.49310516]
[1770233458441,0.469,2135.2,2133.7,7.66098327]
[1770233459039,7.79780652,2135.6,2133.9,7.27808467]
[1770233459440,7.80376075,2135.6,2133.9,7.27808467]
[1770233460436,7.80376075,2135.6,2133.9,7.04330467]
[1770233460636,7.55938968,2135.5,2133.9,7.04330467]
[1770233461432,8.03434391,2135.6,2134.1,7.04330467]
[1770233462035,0.47495423,2135.6,2134.1,7.04330467]
[1770233462241,0.47495423,2135.6,2134.5,7.04330467]
[1770233462637,0.00595423,2135.6,2134.7,7.04330467]
[1770233462839,7.55938968,2136.5,2135.4,7.04330467]
[1770233463141,12.37199193,2137.1,2135.4,7.27790467]
[1770233463142,8.02838968,2136.8,2135.4,7.27790467]
[1770233463736,8.03376446,2136.8,2135.4,7.28286448]
[1770233464244,0.47437478,2136.8,2135.6,7.04330467]
[1770233464437,0.47437478,2136.8,2135.6,7.27789467]
[1770233464637,0.00537478,2136.8,2135.6,7.27789467]
[1770233464938,0.469,2137.6,2136.1,7.04330467]
[1770233465140,8.02838968,2137.6,2136.1,7.04330467]
[1770233465841,0.00562351,2137.6,2136.3,7.04330467]
[1770233466032,7.55938968,2138.0,2136.3,7.04330467]
[1770233466434,7.55938968,2137.7,2136.0,7.04330467]
[1770233466737,48.09454247,2138.0,2136.4,7.04330467]
[1770233466938,0.469,2138.1,2136.4,7.27780467]
[1770233467135,0.00606829,2138.0,2136.4,7.27780467]
[1770233467339,0.00606829,2138.0,2136.8,7.04330467]
[1770233468246,7.55938968,2139.0,2137.1,7.04330467]
[1770233468444,0.469,2139.1,2137.4,7.04330467]
[1770233469245,8.03216053,2139.1,2137.4,7.04817803]
[1770233470048,8.26637053,2139.1,2137.4,7.04817803]
[1770233470652,7.55938968,2138.9,2137.4,7.04817803]
[1770233471652,7.55938968,2138.7,2137.4,0.00487336]
[1770233472345,7.55938968,2138.7,2137.4,7.04817803]
[1770233473550,7.55938968,2139.0,2137.4,7.28256803]
[1770233473752,7.55938968,2139.0,2137.6,7.27767467]
[1770233474149,0.47277085,2139.1,2138.1,7.04330467]
[1770233474346,0.00377085,2139.1,2138.1,7.27761467]
[1770233474649,7.56316053,2139.1,2138.1,7.04330467]
[1770233474852,7.79737053,2139.1,2137.7,7.04330467]
[1770233475048,7.56316053,2139.1,2137.7,7.04330467]
[1770233475250,0.00377085,2139.1,2137.9,7.04330467]
[1770233475553,0.00377085,2139.1,2137.9,7.27764467]
[1770233476449,0.468,2139.6,2138.1,7.04330467]
[1770233476655,3.281,2140.6,2138.3,7.04330467]
[1770233476656,7.79343968,2140.6,2138.3,7.04330467]
[1770233476856,7.79343968,2140.6,2138.2,1.07782]
[1770233476857,0.468,2140.6,2139.0,7.04330467]
[1770233477355,0.468,2140.6,2139.2,7.04330467]
[1770233477356,8.02738968,2140.6,2139.2,7.04330467]
[1770233477551,8.03074205,2140.6,2139.2,7.04330467]
[1770233478256,0.00335237,2140.6,2139.2,7.27749467]
[1770233480251,0.00335237,2140.6,2139.3,0.9348]
[1770233480455,0.00335237,2140.6,2139.4,7.04330467]
[1770233480652,7.56274205,2140.6,2139.4,7.04330467]
[1770233481757,7.56274205,2140.6,2139.3,0.9348]
[1770233481959,7.55938968,2140.4,2139.0,0.00448554]
[1770233482352,7.54791877,2140.1,2138.4,7.04330467]
[1770233482552,7.54343323,2139.6,2138.4,7.04330467]
[1770233482757,7.54343323,2140.0,2138.3,7.04330467]
[1770233482958,8.01143323,2140.1,2138.8,7.04330467]
[1770233483158,8.01143323,2140.1,2138.4,7.04330467]
[1770233483453,0.468,2140.1,2139.0,7.04330467]
[1770233483659,0.468,2140.1,2138.9,0.9349]
[1770233483660,8.01143323,2140.1,2138.9,0.9349]
[1770233485754,0.00335237,2140.6,2138.9,8.10858169]
[1770233485955,0.00335237,2140.6,2139.2,7.17368169]
[1770233486356,0.00335237,2140.6,2139.5,7.17368169]
[1770233488466,0.468,2141.3,2139.5,7.40784169]
[1770233488961,0.70197,2141.3,2139.5,7.40784169]
[1770233489257,7.52423475,2141.0,2139.5,7.17368169]
[1770233489456,7.29023475,2140.7,2139.5,7.17368169]
[1770233489963,7.52429475,2140.5,2139.0,7.17368169]
[1770233490158,0.468,2140.4,2139.0,7.17368169]
[1770233490358,7.75823475,2140.4,2139.0,7.17368169]
[1770233490561,7.29023475,2140.3,2139.0,7.17368169]
[1770233490861,0.23412,2139.9,2139.0,7.17368169]
[1770233491459,7.29023475,2139.6,2138.2,7.17368169]
[1770233491656,6.90393112,2139.5,2138.4,7.1794085]
[1770233491862,6.90854977,2139.5,2138.4,7.1794085]